Cogmind - Beta 14 @@@ ROGUE MODE // 2024.11.05 @ 02:54:07 Player: laeb2 Result: Destroyed by G-47 Trooper with Particle Gun Performance ------------- Evolutions (0) 0 Regions Visited (1) 200 Robots Destroyed (3) 15 Value Destroyed (20) 20 Prototype IDs (0) 0 Alien Tech Used (0) 0 Bonus (0) 0 TOTAL SCORE: 235 Bonus ------- None Cogmind --------- Core Integrity 0/250 Matter 223/300 Energy 99/100 System Corruption 38% Temperature Cool (9) Movement Core (100) Ox1 Location -10/Materials Parts ------- > --- POWER (1) -------- (None) > --- PROPULSION (2) --- (None) > --- UTILITY (2) ------ Core Shielding Core Shielding > --- WEAPON (2) ------- Assault Rifle (fused) > --- INVENTORY (5) ---- Light Ion Engine Wheel Wheel Grenade Launcher Mining Laser Peak State ------------ > --- POWER ------------ Ion Engine > --- PROPULSION ------- Light Treads Light Treads > --- UTILITY ---------- Small Storage Unit Seismic Detector > --- WEAPON ----------- EM Pulse Gun Assault Rifle > --- INVENTORY -------- Light Ion Engine Aluminum Leg Aluminum Leg EM Pulse Gun [Rating: 7] Favorites ----------- Power Ion Engine Engine Ion Engine Propulsion Light Treads Treads Light Treads Leg Aluminum Leg Utility Small Storage Unit Device Seismic Detector Storage Small Storage Unit Protection Core Shielding Weapon Assault Rifle Energy Gun EM Pulse Gun Ballistic Gun Assault Rifle Launcher Grenade Launcher Special Weapon Mining Laser Build | -11 -10 ------- Run | Yrd Mat Slots Evolved . | . . Power . | . . Propulsion . | . . Utility . | . . Weapon . | . . Parts Attached 20 | 15 5 Power 2 | 2 . Engine 2 | 2 . Core . | . . Reactor . | . . Propulsion 5 | 5 . Treads 3 | 3 . Leg 2 | 2 . Wheel . | . . Hover . | . . Flight . | . . Utility 4 | 2 2 Device 1 | 1 . Storage 1 | 1 . Processor . | . . Hackware . | . . Protection 2 | . 2 Artifact . | . . Weapon 9 | 6 3 Energy Gun 5 | 4 1 Energy Cannon . | . . Ballistic Gun 2 | 1 1 Ballistic Cannon . | . . Launcher 1 | . 1 Special Weapon 1 | 1 . Impact Weapon . | . . Slashing Weapon . | . . Piercing Weapon . | . . Special Melee Weapon . | . . Unidentified Prototypes . | . . Parts Lost 12 | 11 1 Power 2 | 2 . Propulsion 4 | 4 . Utility 2 | 2 . Weapon 4 | 3 1 Highest Loss Streak 5 | 5 1 To Critical Strikes . | . . Average Slot Usage (%) 37 | . 37 Protection 21 | . 21 Energy Gun 3 | . 3 Ballistic Gun 5 | . 5 Launcher 7 | . 7 Peak Build Rating 7 | 7 4 Average Rating 6 | 6 2 On Entrance . | . . Naked Turns 6 | . 6 Heaviest Build 15 | 15 7 Greatest Support 40 | 40 3 Greatest Overweight (x) 2 | 1 2 Average Overweight (x) . | . . Largest Inventory Capacity 8 | 8 5 Average Capacity 7 | 7 5 Most Carried 8 | 8 5 Average Carried 4 | 4 4 Final Capacity 5 | 5 5 Final Carried 5 | 5 5 Class Distribution -------------------- 100% | Mutant Dominant Class ---------------- Mutant | -10/Materials Resources | -11 -10 ----------- Run | Yrd Mat Matter Collected 525 | 525 . Remotely . | . . Salvage Created 367 | 367 . Parts 10 | 10 . Haulers Intercepted . | . . Recyclers Shooed 1 | 1 . Parts Field Recycled . | . . Retrieved Matter . | . . Parts Self-Destructed . | . . Prevented . | . . Kills | -11 -10 ------- Run | Yrd Mat Combat Hostiles Destroyed 16 | 16 . Melee 2 | 2 . Guns 14 | 14 . Classes Destroyed 3 | 3 . Tunneler 2 | 2 . Recycler 1 | 1 . Assembled 16 | 16 . Best Kill Streak 5 | 5 . Combat Bots Only 5 | 5 . Max Kills in Single Turn 1 | 1 . Gunslinging . | . . Exploded . | . . Melee 1 | 1 . Uniques/NPCs Destroyed . | . . Combat | -11 -10 -------- Run | Yrd Mat Hostile Shots Fired 95 | 74 21 Missed 18 | 10 8 Damage Taken 1310 | 1145 165 Core 259 | 207 52 Absorbed by Shields . | . . Redirected to Shielding 11 | . 11 Core Remaining (%) 17 | 17 . Volleys Fired 95 | 85 10 Largest 2 | 2 2 Hottest 100 | 100 60 Shots Fired 127 | 114 13 Gun 103 | 90 13 Cannon . | . . Launcher . | . . Special 24 | 24 . Kinetic 71 | 62 9 Thermal 24 | 24 . Explosive . | . . Electromagnetic 32 | 28 4 Robot Hit Streak 8 | 8 3 Robot Miss Streak 5 | 2 5 Penetration Max . | . . Secondary Targets 2 | 2 . Max Gunslinging Chain 1 | 1 . Shots Hit Robots 73 | 67 6 Core Hits 44 | 42 2 Critical Kills . | . . Critical Parts Destroyed . | . . Critical Strikes 2 | 2 . Corrupt 2 | 2 . Melee Attacks . | . . Impact . | . . Slashing . | . . Piercing . | . . Sneak Attacks . | . . Combat Hostiles . | . . Follow-up Attacks . | . . Damage Inflicted 1155 | 926 229 Guns 932 | 812 120 Cannons . | . . Explosions 157 | 48 109 Melee . | . . Ramming 66 | 66 . Kinetic 649 | 572 77 Thermal 157 | 48 109 Explosive . | . . Electromagnetic 283 | 240 43 Impact . | . . Slashing . | . . Piercing . | . . Highest Corruption 38 | 38 38 Average Corruption 15 | 11 38 Corruption Purged . | . . Corruption Blocked . | . . Effects 22 | 17 5 Message Errors 5 | 3 2 Matter Fused 4 | 3 1 Heat Flow Errors 3 | 3 . Energy Discharges 2 | 2 . Parts Rejected 1 | 1 . Parts Fused 1 | . 1 Data Loss (minor) 3 | 3 . Data Loss (major) 1 | 1 . Misfires 1 | 1 . Weapon Failures 1 | . 1 Overload Shots . | . . Overflow Damage . | . . Projectiles . | . . Explosions . | . . Melee . | . . Knockbacks . | . . Impact . | . . Kinetic . | . . Secondary . | . . Self-Inflicted Damage 20 | 20 . Shots 1 | 1 . Rammed 7 | 7 . Targets Rammed 37 | 37 . Kicked 29 | 29 . Crushed 1 | 1 . Highest Temperature 178 | 178 10 Average Temperature 27 | 27 4 Received Heat Transfer 216 | 120 96 Siege Activations . | . . Robots Corrupted . | . . Combat Hostiles . | . . Parts Fried . | . . Impact Corruptions . | . . Robots Melted . | . . Combat Hostiles . | . . Parts Melted . | . . Heat Transferred 100 | . 100 Parts Sabotaged . | . . Parts Stolen . | . . Parts Stripped . | . . Power Chain Reactions 2 | 1 1 Alert | -11 -10 ------- Run | Yrd Mat Peak Influence 15 | 15 12 Initial . | . . Average 3 | 3 3 Maximum Alert Level . | . . Low Security (%) 100 | 100 100 Level 1 . | . . Level 2 . | . . Level 3 . | . . Level 4 . | . . Level 5 . | . . High Security . | . . Max Security . | . . Squads Dispatched . | . . Investigation . | . . Extermination . | . . Reinforcement . | . . Assault . | . . Garrison . | . . Intercept . | . . Searches Triggered . | . . Construction Impeded . | . . Haulers Reinforced . | . . Active Scanning Responses . | . . Cargo Convoy Interrupts . | . . Stealth | -11 -10 --------- Run | Yrd Mat Distress Signals . | . . Communications Jammed . | . . Distress Signals . | . . Times Spotted 26 | 24 2 Peak Tracking Total 3 | 3 2 Tactical Retreats 4 | 4 . Traps | -11 -10 ------- Run | Yrd Mat Traps Triggered . | . . Indirectly . | . . Trap Hack Attempts . | . . Triggered . | . . Disarmed . | . . Reprogrammed . | . . Reused . | . . Traps Extracted . | . . Installed . | . . Triggered . | . . Machines | -11 -10 ---------- Run | Yrd Mat Machines Disabled . | . . Max in Single Turn . | . . Machines Repaired . | . . Machines Dismantled . | . . Machines Sabotaged . | . . Overloaded Fab Kills . | . . Hacking | -11 -10 --------- Run | Yrd Mat Machines Accessed 1 | . 1 Terminals 1 | . 1 Fabricators . | . . Repair Stations . | . . Recycling Units . | . . Scanalyzers . | . . Garrison Access . | . . Total Hacks 3 | . 3 Successful 1 | . 1 Failed 2 | . 2 Catastrophic 1 | . 1 Database Lockouts . | . . Manual 3 | . 3 Terminals 3 | . 3 Fabricators . | . . Repair Stations . | . . Recycling Units . | . . Scanalyzers . | . . Garrison Access . | . . Terminal Hacks . | . . Fabricator Hacks . | . . Repair Station Hacks . | . . Recycling Unit Hacks . | . . Scanalyzer . | . . Garrison Access Hacks . | . . Unauthorized Hacks 1 | . 1 Terminals 1 | . 1 Botnet 1 | . 1 Fabricators . | . . Repair Stations . | . . Recycling Units . | . . Scanalyzers . | . . Garrison Access . | . . Data Cores Recovered . | . . Used . | . . Hacking Detections 1 | . 1 Full Trace Events . | . . Feedback Events . | . . Feedback Blocked . | . . Robot Schematics Acquired . | . . Robots Built . | . . Authchips . | . . Time . | . . Total Robot Build Rating . | . . Part Schematics Acquired . | . . Parts Built . | . . Authchips . | . . Time . | . . Total Part Build Rating . | . . Parts Repaired . | . . Time . | . . Parts Recycled . | . . Recycled Matter . | . . Retrieved Matter . | . . Retrieved Components . | . . Parts Scanalyzed . | . . Part Schematics Acquired . | . . Parts Damaged . | . . Bothacking | -11 -10 ------------ Run | Yrd Mat Used RIF Installer . | . . Robots Hacked . | . . Non-combat . | . . Combat . | . . Robot Hacks Applied . | . . Relay Couplers Released . | . . Fabnet Peak Effective % . | . . Robots Rewired . | . . Allies Hacked . | . . Hacks Repelled . | . . Allies | -11 -10 -------- Run | Yrd Mat Total Allies . | . . Largest Group . | . . Highest-Rated Group . | . . Highest-Rated Ally . | . . Total Orders . | . . Ally Attacks . | . . Total Damage . | . . Kills . | . . Allies Corrupted . | . . Allies Melted . | . . Intel | -11 -10 ------- Run | Yrd Mat Robot Analysis Total . | . . Derelict Logs Recovered . | . . Drone Launches . | . . Drone Recoveries . | . . Exploration | -11 -10 ------------- Run | Yrd Mat Turns Passed 1669 | 1598 71 Spaces Moved 507 | 455 52 Core 84 | 32 52 Treads 392 | 392 . Legs 31 | 31 . Wheels . | . . Hover . | . . Flight . | . . Fastest Speed 50 | 50 50 Average Speed 143 | 151 75 Slowest Speed 160 | 160 150 Overloaded Moves . | . . Propulsion Burnouts . | . . Robots Hopped . | . . Cave-ins Triggered . | . . Exploration Rate (%) 21 | 29 14 Regions Visited 1 Branch Regions . Pre-discovered Areas . | . . Known Exits Taken . | . . Unknown Exits Taken 1 | 1 . Scrap Searched . | . . Spaces Dug 1 | 1 . Terrain Destroyed 10 | 6 4 Melee . | . . Projectile 3 | 3 . AOE 7 | 3 4 Terrain Rammed . | . . Walls Destroyed . | . . Machines Disabled . | . . Actions | -11 -10 --------- Run | Yrd Mat Total 1261 | 1192 69 Wait 583 | 583 . Move 507 | 455 52 Hop . | . . Pick Up 18 | 17 1 Fast Attach 7 | 3 4 Attach 10 | 10 . Detach 1 | 1 . Swap 3 | 2 1 Drop 1 | . 1 Fire 95 | 85 10 Melee . | . . Ram 1 | 1 . Kick 29 | 29 . Crush 6 | 6 . Escape Stasis . | . . Rewire . | . . Trap . | . . Miscellaneous . | . . Route ------- -11/Scrapyard -10/Materials History --------- Turn | Location | Event 6 | -11/Scrapyard | Discovered new exit (range 14) 756 | -11/Scrapyard | Assembled infested the area 1389 | -11/Scrapyard | System corruption reached 10% 1532 | -11/Scrapyard | Core integrity fell below 50% 1599 | -11/Scrapyard | Core integrity fell below 20% 1599 | -11/Scrapyard | System corruption reached 30% 1599 | -11/Scrapyard | Entered Materials 1600 | -10/Materials | Build established: Mutant 1629 | -10/Materials | Lost 5 parts (1p2n2u) 1670 | -10/Materials | Destroyed by G-47 Trooper with Particle Gun Last Messages --------------- Acquired Grenade Launcher. System corrupted: Matter fused (-5). Acquired Core Shielding. Connecting with Terminal... Current location identified: Materials >>Trojan(Botnet) Trojan loaded successfully. Testing... Terminal linked with 0 systems. Awaiting botnet instructions. Acquired EM Pulse Gun. TB%CWW77XTFW%PYP7 DGBDVP#Q=FD3J ,KV SMH Dropped Mining Laser. Acquired Assault Rifle. Chain reaction triggered in Lgt. Nuclear Core. UK6V1< 3 NZ#M:ACKAU%T9AYBVP04BRV EM Pulse Gun destroyed. System corrupted: Assault Rifle jammed. R-06 Scavenger collects Mining Laser. System corrupted: Assault Rifle fused. Map ----- +----------------------------------------------------+ | ?????????????????????????????????????????????????? | | ?????????????????????????????????????????????????? | | ?????????????????????????????????????????????????? | | ?????????????????????????????????????????????????? | | ?????????????????????????????????????????????????? | | ?????????????????????????????????????????????????? | | ?????????????????????????????????????????????????? | | ?????????????????????????????????????????????????? | | ????????????????????????? ??????????????????????? | | ???????????????????????# ##############????????? | | ???????????????????????# #???????? | | ???????????????????????# #???????? | | ???????????????????????# !! ######### | | ???????????????????????# !! # | | ????????????????????? ?# ! # """ | | ?????????????????????"?# # """ | | ?????????????????????? # # """ | | ??????????????? ?????? # # | | ???????????????? #?"?? # # """ | | ?????????????????m ""??; # """ | | ?????????????????? ""?; # """ | | ????????????????????"" #;g;## # | | ????????????????????? # g # ###+##### | | ??????????????????????=; # !! #? | | ???????????????????????# + #? | | ???????????????????????#r@ # #? | | ???????????????????????#r # "T" #? | | ???????????????????????# # #################? | | ???????????????????????# # #????????????????? | | ???????????????????????# # #????????????????? | | ???????????????????????# # #????????????????? | | ???????????????????????###### #????????????????? | | ????????????????????????????#^ #????????????????? | | ????????????????????????????# #????????????????? | | ????????????????????????????# #????????????????? | | ????????????????????????????# #????????????????? | | ????????????????????????????# ????????????????? | | ????????????????????????????# ????????????????? | | ????????????????????????????# ?????????????????? | | ?????????????????????????????????????????????????? | | ?????????????????????????????????????????????????? | | ?????????????????????????????????????????????????? | | ?????????????????????????????????????????????????? | | ?????????????????????????????????????????????????? | | ?????????????????????????????????????????????????? | | ?????????????????????????????????????????????????? | | ?????????????????????????????????????????????????? | | ?????????????????????????????????????????????????? | | ?????????????????????????????????????????????????? | | ?????????????????????????????????????????????????? | +----------------------------------------------------+ Best States ------------- Heat Dissipation 25 Energy Generation 10 Energy Capacity 250 Matter Stores 300 Matter Capacity 300 Sight Range 16 Terrain Scan Density 10 Core Shielding 20 Evasion (%) 50 Recoil Reduction 2 Item Schematics ----------------- None Robot Schematics ------------------ None Fabricated ------------ Nothing Alien Tech Used ----------------- None Achievements -------------- None Challenges ------------ None Game ------ Seed GrenadeResetShredder Manual? 0 Play Time 00:07:46 Cumulative 73.5 hours Start 2024.11.05 @ 02:47:08 End 2024.11.05 @ 02:54:07 Sessions 1 Manual Loads 0 Difficulty Rogue Special Mode None Game No. 89 Rogue 89 Adventurer 0 Explorer 0 Win Type - Total 1 Types 1/0/0/0/0/0/0/0/0 Lore% 50 Gallery% 53 Achievement% 50 Wizard Run 0 Options --------- Layout 1 ASCII 0 Keyboard 0 Movement Mouse Keybinds 0 Fullscreen 1 Font 32/SmallcapsGlow Map View 50x35 Zoom Use 0% Tactical HUD 0 Map Filters NONE Filters NONE Steam 1 RUN: 60168455-a274-4b7b-b4f5-91f9cba3fe4f